bitfinex/quotes_ETHUSD_20250319
["timestamp","ask_amount","ask_price","bid_price","bid_amount"]
[1742409928131,0.01,2034.4,2034.1,6.17381313]
[1742409928333,0.01,2034.4,2034.1,1.25777313]
[1742409928525,0.01,2034.4,2034.1,6.17391313]
[1742409929057,0.01,2034.4,2034.1,1.25777313]
[1742409929342,0.01,2034.4,2034.1,6.17392313]
[1742409929509,0.01,2034.4,2034.2,1.79224744]
[1742409930138,0.01,2034.4,2034.0,6.82831131]
[1742409930523,0.01,2034.4,2034.2,4.91583]
[1742409930741,0.01,2034.4,2034.3,4.96483762]
[1742409931117,0.01,2034.4,2034.3,4.91569]
[1742409931312,0.01,2034.4,2034.2,4.91582]
[1742409931550,0.01,2034.4,2034.3,0.566862]
[1742409931752,0.01,2034.4,2034.0,11.74473131]
[1742409931753,0.8253,2034.3,2034.0,0.36831131]
[1742409931911,0.8253,2034.3,2033.8,6.459]
[1742409932249,0.01,2034.4,2033.9,0.7651]
[1742409932453,0.01,2034.4,2034.0,4.91628]
[1742409932652,0.01,2034.4,2034.2,4.91571]
[1742409932836,0.01,2034.4,2034.2,4.91593]
[1742409933015,0.01,2034.4,2034.3,6.457]
[1742409933352,0.01,2034.4,2034.3,17.55030179]
[1742409933525,0.01,2034.4,2034.3,9.457]
[1742409933734,0.01,2034.4,2034.3,10.7787468]
[1742409933915,0.01,2034.4,2034.3,7.7787468]
[1742409934119,0.7898,2034.4,2034.3,6.207]
[1742409934352,0.01,2034.4,2034.3,6.207]
[1742409934941,0.01,2034.4,2034.0,4.91636]
[1742409935145,0.7798,2034.3,2033.6,6.455]
[1742409935368,4.35415297,2034.3,2033.5,12.16967]
[1742409935654,0.8023,2034.2,2033.5,6.455]
[1742409935857,0.8023,2034.2,2033.6,4.91738]
[1742409936022,0.8023,2034.2,2033.5,11.73298671]
[1742409936353,0.8023,2034.2,2033.5,6.81541671]
[1742409936658,1.41475112,2034.2,2033.5,13.52397856]
[1742409936822,0.8023,2034.2,2033.5,8.60648856]
[1742409937023,0.8023,2034.2,2033.5,6.81541671]
[1742409937218,4.9163,2034.1,2033.5,0.36041671]
[1742409937415,0.8083,2033.9,2033.2,21.238]
[1742409937630,0.8083,2033.8,2033.2,6.452]
[1742409937828,0.8039,2033.7,2033.2,6.452]
[1742409938050,0.8039,2033.7,2033.2,7.589081]
[1742409938251,0.8039,2033.7,2033.1,0.36968943]
[1742409938442,0.8039,2033.7,2033.0,3.98327709]
[1742409938645,3.17761179,2033.6,2032.6,5.74999]
[1742409938818,3.17761179,2033.6,2032.5,3.17761179]
[1742409938819,0.8134,2033.5,2032.7,6.452]
[1742409939016,0.8311,2033.4,2032.7,0.36721424]
[1742409939218,0.8311,2033.4,2032.6,11.37057]
[1742409939473,0.8311,2033.4,2032.7,1.45973697]
[1742409939758,0.8282,2033.3,2032.6,6.451]
[1742409939927,4.91878,2033.1,2032.4,0.37681944]
[1742409940121,0.8282,2032.9,2032.1,6.451]
[1742409940438,0.8282,2032.9,2032.4,4.92004]
[1742409940633,0.8282,2032.9,2032.3,8.09811179]
[1742409940953,0.8282,2032.9,2032.4,6.52205518]
[1742409941119,0.8282,2032.9,2032.5,8.09743179]
[1742409941317,0.8282,2032.9,2032.4,2.36777518]
[1742409941552,0.8282,2032.9,2032.4,1.96428682]
[1742409941791,0.8282,2032.9,2032.4,0.36241164]
[1742409941957,0.8282,2032.9,2032.3,6.449]
[1742409942124,0.8282,2032.9,2032.3,9.62661179]
[1742409942323,0.8282,2032.9,2032.5,3.0]
[1742409942661,0.8282,2032.9,2032.4,3.0]
[1742409942859,0.8127,2033.3,2032.8,9.83833]
[1742409943159,0.8127,2033.3,2032.8,11.36911]
[1742409943364,0.8127,2033.3,2032.8,6.45]
[1742409943746,0.8127,2033.3,2033.0,4.91872]
[1742409944319,0.8127,2033.3,2032.9,3.0]
[1742409944525,0.8127,2033.3,2032.9,3.36672267]
[1742409944746,0.8127,2033.3,2032.8,6.45]
[1742409945559,0.8127,2033.3,2032.8,11.36924]
[1742409945755,0.8127,2033.3,2032.9,4.91894]
[1742409945925,0.8127,2033.3,2032.9,4.91892]
[1742409946126,0.8127,2033.3,2033.0,6.37347318]
[1742409946330,0.7753,2033.8,2033.3,4.91791]
[1742409946626,0.7753,2033.8,2033.3,14.36494]
[1742409946821,0.7753,2033.8,2033.3,19.28293]
[1742409947027,0.7753,2033.8,2033.4,4.91776]
[1742409947261,0.7753,2033.8,2033.5,1.92827]
[1742409948064,0.7753,2033.8,2033.3,6.447]
[1742409948423,0.8025,2034.2,2033.4,4.96682081]
[1742409948629,0.8025,2034.2,2033.4,4.91765]
[1742409948829,0.8025,2034.2,2033.3,9.62461179]
[1742409948830,0.8025,2034.2,2033.5,3.22677921]
[1742409949034,0.8025,2034.2,2033.7,3.17761179]
[1742409949247,0.8025,2034.2,2033.6,7.91735]
[1742409949537,0.8025,2034.2,2033.4,3.0]
[1742409949731,0.8025,2034.2,2033.5,4.9174]
[1742409949970,0.8025,2034.2,2033.5,8.09501179]
[1742409950274,0.8025,2034.2,2033.6,4.91725]
[1742409950436,0.8025,2034.2,2033.7,6.21833418]
[1742409950636,0.8025,2034.2,2033.8,6.444]
[1742409951646,0.8025,2034.2,2033.4,3.0]
[1742409951647,0.8104,2034.1,2033.4,9.443]
[1742409951853,0.8104,2034.1,2033.5,0.04916721]
[1742409952091,0.8104,2034.1,2033.4,14.36065]
[1742409952257,0.8104,2034.1,2033.4,21.52406718]
[1742409952438,0.8104,2034.1,2033.4,16.96789411]
[1742409952807,0.8104,2034.1,2033.4,6.80460693]
[1742409952978,0.8198,2034.0,2033.4,6.80460693]
[1742409953444,0.8198,2034.0,2033.5,4.91741]
[1742409953641,0.8198,2034.0,2033.6,4.91737]
[1742409953843,0.8198,2034.0,2033.7,4.91712]
[1742409954042,0.8198,2034.0,2033.8,0.49662841]
[1742409954268,0.8198,2034.0,2033.5,12.83492]
[1742409954439,0.8198,2034.0,2033.5,3.0]
[1742409955041,0.8198,2034.0,2033.4,6.80460693]
[1742409955591,3.94071179,2033.6,2032.9,6.439]
[1742409955755,4.91637,2034.1,2032.9,6.81557227]
[1742409955756,1.15717118,2033.5,2032.9,6.81557227]
[1742409955962,0.7631,2033.5,2032.9,6.81557227]
[1742409956679,0.7631,2033.5,2033.0,0.04918058]
[1742409956883,0.7631,2033.5,2032.9,6.81557227]
[1742409958756,0.751,2033.4,2032.9,0.37657227]
[1742409958980,0.751,2033.4,2032.6,6.436]
[1742409959180,0.751,2033.2,2032.6,6.436]
[1742409959386,0.751,2033.2,2032.6,11.35569]
[1742409959858,0.7602,2033.6,2032.7,8.09717179]
[1742409960201,0.7602,2033.5,2032.6,6.7964376]
[1742409960495,0.7602,2033.5,2032.7,4.91947]
[1742409960683,1.13622,2033.5,2032.8,1.66356976]
[1742409960989,0.7852,2033.3,2032.6,0.3604376]
[1742409961303,5.71916,2032.6,2032.0,14.78]
[1742409961461,0.7992,2032.6,2031.8,4.92159]
[1742409961769,0.7992,2032.6,2031.8,3.0]
[1742409961957,0.7747,2032.4,2031.8,1.512725]
[1742409962155,0.7747,2032.4,2031.9,4.97050537]
[1742409962370,0.7747,2032.4,2032.0,4.92122]
[1742409962599,3.8186,2033.1,2032.3,4.9204]
[1742409962898,0.8186,2032.9,2032.1,6.434]
[1742409963193,0.8186,2032.9,2032.2,4.9206]
[1742409963402,0.8186,2032.9,2032.3,6.91984414]
[1742409963554,0.8186,2032.9,2032.4,0.04919057]
[1742409963757,0.8186,2032.9,2032.5,4.92001]
[1742409963989,0.8186,2032.9,2032.6,6.434]
[1742409964705,0.8186,2032.9,2032.3,4.95021996]
[1742409964908,0.8186,2032.9,2032.5,0.37780898]
[1742409965107,0.8186,2032.9,2032.3,7.92048]
[1742409965411,0.8186,2032.9,2032.3,3.0]
[1742409965577,0.7976,2032.8,2032.0,6.432]
[1742409965778,0.88944218,2032.7,2032.0,7.567373]
[1742409966408,0.801,2032.6,2031.9,6.432]
[1742409966912,8.98674397,2032.7,2031.8,6.432]
[1742409966913,0.801,2032.3,2031.8,6.432]
[1742409967208,0.801,2032.3,2031.4,4.9227]
[1742409967514,0.7855,2032.3,2031.4,7.97188171]
[1742409967711,0.7855,2032.3,2031.5,9.60861179]
[1742409967913,0.7855,2032.3,2031.8,0.8089]
[1742409968119,0.7855,2032.3,2031.8,10.65218]
[1742409968313,0.7725,2032.7,2031.9,4.92148]
[1742409968611,3.17761179,2032.9,2031.9,4.92148]
[1742409968612,0.7725,2033.4,2032.5,4.92004]
[1742409968913,0.7717,2033.2,2032.5,11.35188]
[1742409969071,0.7717,2033.2,2032.6,1.627216]
[1742409969272,0.7717,2032.9,2032.5,6.432]
[1742409969621,0.7717,2032.9,2032.1,6.431]
[1742409969622,4.91945,2032.8,2032.1,6.431]
[1742409969782,0.7717,2032.7,2032.1,6.431]
[1742409970477,5.69132,2032.7,2032.1,6.431]
[1742409970675,0.7717,2032.7,2032.1,6.431]
[1742409970905,0.8261,2032.5,2032.1,6.431]
[1742409971408,0.8261,2032.5,2031.8,3.0]
[1742409971632,0.8261,2032.5,2032.2,4.92077]
[1742409971909,0.8263,2032.9,2032.4,4.92026]
[1742409972114,0.8263,2032.9,2032.4,4.96945176]
[1742409972317,4.91702,2033.8,2032.6,4.91957]
[1742409972474,5.74409,2033.5,2032.7,6.429]
[1742409972675,4.91802,2033.4,2032.7,6.429]
[1742409972876,0.7512,2033.3,2032.7,6.429]
[1742409973072,1.618097,2033.3,2032.7,6.429]
[1742409973307,0.7512,2033.3,2032.7,6.429]
[1742409974310,0.7807,2033.2,2032.7,6.429]
[1742409974612,0.7627,2033.0,2032.3,6.428]
[1742409974795,0.7627,2033.0,2032.3,6.79187701]
[1742409974983,0.7627,2033.0,2032.4,6.427]
[1742409975333,0.8073,2032.8,2032.0,6.427]
[1742409975977,5.72675,2032.8,2032.0,6.427]
[1742409976175,0.8073,2032.8,2032.1,4.92087]
[1742409976390,0.8073,2032.8,2032.0,11.34806]
[1742409976601,0.8073,2032.8,2031.8,7.92166]
[1742409976810,0.7858,2032.5,2031.7,6.79039462]
[1742409977128,5.70594,2032.5,2031.7,6.426]
[1742409977333,0.7833,2032.4,2031.7,6.426]
[1742409977539,4.92047,2032.4,2031.6,1.26086118]
[1742409977697,0.7833,2032.3,2031.5,6.425]
[1742409977898,5.70383,2032.3,2031.5,6.425]
[1742409978231,0.8283,2032.1,2031.4,6.79397913]
[1742409978726,0.7861,2031.9,2031.0,5.6911]
[1742409978942,4.92136,2032.0,2030.5,5.14988647]
[1742409978943,0.7861,2031.6,2030.7,5.71607]
[1742409979147,5.70846,2031.6,2030.8,6.424]
[1742409979355,0.7672,2031.5,2030.8,6.424]
[1742409979509,0.55,2031.5,2030.3,14.788]
[1742409979708,0.7672,2031.2,2030.4,13.402428]
[1742409979949,0.7672,2031.2,2030.4,8.477298]
[1742409980143,4.92329,2031.2,2030.4,2.053298]
[1742409980443,0.8115,2031.1,2030.3,21.212]
[1742409980614,0.806,2031.0,2030.3,21.213]
[1742409980812,5.72978,2031.0,2030.3,6.425]
[1742409981134,0.8305,2030.8,2030.3,6.425]
[1742409981945,0.8305,2030.8,2030.0,0.00664447]
[1742409982246,5.75489,2030.8,2030.0,0.64970892]
[1742409982878,10.67928,2030.8,2030.0,0.64970892]
[1742409983146,0.7786,2030.7,2030.0,0.00664447]
[1742409983350,0.7786,2030.5,2030.0,0.00664447]
[1742409983730,5.70361,2030.5,2030.0,0.00664447]
[1742409983934,0.7786,2030.5,2030.0,0.00664447]
[1742409984112,2.346114,2030.5,2030.0,0.00664447]
[1742409984318,0.8268,2030.4,2030.0,0.00664447]
[1742409986160,0.8268,2030.4,2030.0,4.93255447]
[1742409986615,0.8268,2030.4,2030.0,0.00664447]
[1742409987655,5.75205,2030.4,2030.0,0.00664447]
[1742409987864,1.067705,2030.3,2030.0,0.00664447]
[1742409988551,0.8268,2030.4,2030.0,0.00664447]
[1742409989627,5.75214,2030.4,2030.0,0.00664447]
[1742409989966,4.92586,2030.1,2030.0,0.00664447]
[1742409990175,9.26316,2030.1,2030.0,0.00664447]
[1742409991263,3.7873,2030.1,2030.0,0.00664447]
[1742409991428,10.28409,2030.1,2030.0,0.00664447]
[1742409991825,4.92708,2029.6,2029.1,0.37046131]
[1742409992152,10.68584,2029.5,2028.5,7.2069]
[1742409992336,0.7711,2029.3,2028.5,0.7859]
[1742409992535,0.7711,2029.3,2028.4,0.3697209]
[1742409992744,0.624878,2029.2,2028.5,7.92963]
[1742409993052,0.7711,2029.3,2029.0,4.92838]
[1742409993239,0.8022,2029.6,2029.0,4.92838]
[1742409993427,0.8022,2029.6,2028.8,6.421]
[1742409993627,0.8022,2029.6,2028.9,4.92875]
[1742409993847,0.8022,2029.6,2028.8,6.421]
[1742409994063,1.375089,2029.6,2028.8,13.053131]
[1742409994272,1.375089,2029.6,2028.8,8.124131]
[1742409994436,6.302179,2029.6,2028.8,8.124131]
[1742409994770,1.375089,2029.6,2028.8,8.124131]
[1742409995143,6.302189,2029.6,2028.8,8.124131]
[1742409995345,1.1229029,2029.5,2028.8,8.124131]
[1742409995671,0.8022,2029.6,2028.8,8.124131]
[1742409996163,0.8022,2029.6,2029.1,4.92815]
[1742409996363,0.8022,2029.6,2029.1,4.92816]
[1742409996567,0.8022,2029.6,2029.1,4.92815]
[1742409996769,0.8022,2029.6,2028.8,8.124131]
[1742409996770,4.92725,2029.6,2028.8,8.124131]
[1742409996944,0.7705,2029.4,2028.8,8.124131]
[1742409997364,0.7705,2029.4,2028.8,13.053131]
[1742409997569,0.7705,2029.4,2028.9,4.92871]
[1742409997786,0.7705,2029.4,2028.8,8.124131]
[1742409998238,4.92736,2029.5,2028.4,4.05853509]
[1742409998445,0.797,2029.3,2028.6,4.92937]
[1742409998838,0.797,2029.3,2028.9,4.92866]
[1742409999043,0.797,2029.9,2029.1,4.92813]
[1742409999242,0.797,2029.9,2029.0,4.92838]
[1742409999445,0.797,2029.9,2029.0,4.92833]
[1742409999778,0.8321,2029.8,2028.9,11.34772]
[1742409999986,1.3162,2029.7,2028.7,0.8311]
[1742410000169,0.7662,2029.3,2028.4,7.2305]
[1742410000343,0.7662,2029.3,2028.4,12.16029]
[1742410000547,0.7662,2029.3,2028.4,1.19156431]
[1742410000758,0.569387,2029.2,2028.4,2.90489143]
[1742410000946,0.7662,2029.3,2028.5,4.92958]
[1742410001981,0.7662,2029.3,2028.4,2.90489143]
[1742410002172,0.7662,2029.3,2028.4,10.02227143]
[1742410002366,0.7662,2029.3,2028.4,10.02219143]
[1742410002887,0.7662,2029.3,2028.5,4.92974]
[1742410003077,0.7662,2029.3,2028.4,5.09239143]
[1742410003078,0.7662,2029.3,2028.6,5.93158314]
[1742410003280,0.7662,2029.3,2028.6,1.00221314]
[1742410003474,0.7662,2029.3,2028.4,10.38857547]
[1742410003670,0.7662,2029.3,2028.4,10.38843547]
[1742410004373,0.7662,2029.3,2028.4,10.38855547]
[1742410005579,0.7662,2029.3,2028.5,4.92968]
[1742410005782,0.7736,2029.2,2028.4,8.87360547]
[1742410006281,0.7736,2029.2,2028.3,4.93012]
[1742410007185,0.7736,2029.2,2028.3,4.93007]
[1742410007486,0.7736,2029.2,2028.3,4.9301]
[1742410007786,0.7736,2029.2,2028.3,4.93009]
[1742410007972,0.7736,2029.2,2028.4,4.92989]
[1742410008278,0.7993,2029.0,2028.4,1.705148]
[1742410008867,0.7993,2029.0,2028.4,6.635098]
[1742410009074,0.7993,2029.0,2028.4,11.564958]
[1742410009396,0.7993,2029.0,2028.5,4.92963]
[1742410009563,0.7993,2029.0,2028.5,4.92975]
[1742410009895,0.7993,2029.0,2028.6,1.1564878]
[1742410010255,0.7993,2029.0,2028.6,6.0859078]
[1742410010482,0.7993,2029.0,2028.7,4.92923]
[1742410010678,0.7993,2029.0,2028.6,6.0859178]
[1742410010884,0.7993,2029.0,2028.6,1.1564878]
[1742410011301,0.7993,2029.0,2028.7,1.10157478]
[1742410011658,0.7993,2029.0,2028.5,4.92973]
[1742410011894,0.7993,2029.0,2028.6,4.9295]
[1742410012064,0.7743,2029.6,2028.9,3.19069131]
[1742410012269,0.7743,2029.6,2029.2,4.92789]
[1742410012456,0.7743,2029.6,2029.2,1.30467413]
[1742410012795,0.7743,2029.6,2029.2,4.92781]
[1742410013102,0.7743,2029.6,2029.4,4.92741]
[1742410013276,0.8109,2030.4,2029.5,8.11781131]
[1742410013469,3.0,2030.4,2029.5,8.11781131]
[1742410013793,0.8227,2030.3,2029.5,4.92712]
[1742410013993,0.8227,2030.3,2029.4,11.33754]
[1742410013994,0.8227,2030.3,2029.4,11.33744]
[1742410014197,4.92567,2030.2,2029.4,6.41]
[1742410014499,0.8081,2029.8,2028.9,11.71040043]
[1742410014665,0.8081,2029.7,2028.9,6.78164043]
[1742410015282,0.8081,2029.7,2028.8,4.929]
[1742410015283,0.8046,2029.4,2028.6,4.92926]
[1742410015598,0.8046,2029.4,2028.5,3.19069131]
[1742410015599,0.8046,2029.4,2028.5,14.52920131]
[1742410015799,0.8046,2029.4,2028.6,3.0]
[1742410015961,0.7956,2029.2,2028.5,6.408]
[1742410016463,0.7956,2029.2,2028.5,11.33761]
[1742410016664,0.7956,2029.2,2028.7,4.92909]
[1742410016893,0.7956,2029.2,2028.8,4.92901]
[1742410017101,0.7956,2029.2,2028.8,4.92885]
[1742410017275,0.7956,2029.2,2028.9,4.92874]
[1742410017487,0.7956,2029.2,2029.0,4.92851]
[1742410017803,0.7956,2029.2,2028.9,4.92863]
[1742410018475,0.7956,2029.2,2028.9,4.92873]
[1742410018682,0.8182,2029.8,2028.8,3.98357631]
[1742410018864,0.8182,2029.7,2029.0,4.92843]
[1742410019068,0.8182,2029.7,2029.0,9.85686]
[1742410019485,0.8182,2029.7,2029.2,4.92789]
[1742410019775,0.8182,2029.7,2029.3,4.92775]
[1742410020002,0.8182,2029.7,2029.4,4.92746]
[1742410020297,9.59569131,2030.4,2029.4,6.31173513]
[1742410020498,0.7893,2030.0,2029.0,9.405]
[1742410020703,0.7893,2029.6,2029.0,6.405]
[1742410021209,0.7893,2029.6,2029.1,4.92818]
[1742410021366,0.7893,2029.6,2029.2,4.92799]
[1742410021571,0.7893,2029.6,2029.2,4.92786]
[1742410021876,0.7893,2029.6,2029.2,6.38021513]
[1742410022084,0.8077,2030.2,2029.3,4.9276]
[1742410022288,3.19069131,2030.2,2029.3,4.9276]
[1742410022460,0.8077,2030.1,2029.3,4.9276]
[1742410022665,0.8077,2030.1,2029.4,4.92742]
[1742410022961,3.8077,2030.1,2029.2,2.28365513]
[1742410023164,3.8077,2030.1,2029.1,4.92815]
[1742410023165,0.8098,2029.9,2029.1,4.92815]
[1742410023402,0.8098,2029.9,2029.0,0.8073]
[1742410023600,9.85303,2029.9,2028.9,9.77320168]
[1742410023772,0.8269,2029.7,2028.9,9.77320168]
[1742410023962,0.8269,2029.7,2028.4,0.7703]
[1742410023963,5.75497,2029.2,2028.4,0.7703]
[1742410024169,3.19069131,2028.9,2028.1,4.94071]
[1742410024376,0.7902,2028.8,2028.1,0.01]
[1742410024604,0.7902,2028.8,2028.2,4.93038]
[1742410024807,0.7902,2028.8,2028.3,3.19069131]
[1742410025009,0.7708,2029.1,2028.7,4.92903]
[1742410025206,0.7708,2029.1,2028.8,0.04928455]
[1742410025393,0.7708,2029.4,2029.1,4.92812]
[1742410025597,0.7708,2029.4,2029.0,4.92847]
[1742410025781,0.7708,2029.4,2029.0,9.85691]
[1742410025981,0.7708,2029.4,2029.1,4.92825]
[1742410026297,0.7708,2029.4,2028.9,9.85724]
[1742410026606,0.7708,2029.4,2029.1,4.92826]
[1742410026806,0.7708,2029.4,2029.0,4.92848]
[1742410027000,0.7708,2029.4,2028.9,5.4787]
[1742410027306,0.7708,2029.4,2029.0,4.92851]
[1742410027508,0.7708,2029.4,2029.0,6.116461]
[1742410027709,0.7708,2029.4,2029.0,6.116281]
[1742410027879,0.8217,2030.0,2029.1,4.92829]
[1742410028084,0.8217,2030.0,2029.5,4.92717]
[1742410028268,0.8217,2030.0,2029.6,4.92693]
[1742410028475,0.8217,2030.0,2029.6,0.81176213]
[1742410028706,0.8059,2030.8,2029.8,5.47654]
[1742410028919,0.8059,2030.7,2030.0,3.19069131]
[1742410029081,0.8059,2030.7,2030.1,4.92569]
[1742410029283,0.8059,2030.7,2029.8,11.87554]
[1742410029611,0.7929,2030.2,2029.2,4.92781]
[1742410029784,3.98359131,2029.9,2029.1,6.398]
[1742410029986,0.7929,2029.9,2029.1,6.398]
[1742410030212,0.7929,2029.9,2029.2,5.47804]
[1742410030505,0.7929,2029.9,2029.1,6.398]
[1742410030913,0.7929,2029.9,2029.1,11.32617]
[1742410031207,0.7929,2029.9,2029.3,4.92771]
[1742410031710,0.7929,2029.9,2029.5,5.47712]
[1742410032078,0.7929,2029.9,2029.3,5.72007]
[1742410032288,0.7929,2029.9,2029.3,0.55]
[1742410032917,0.7929,2029.9,2029.2,0.55]
[1742410033113,1.68385513,2029.9,2029.2,0.55]
[1742410033579,0.827,2029.5,2028.5,0.8016]
[1742410033780,0.827,2029.5,2028.7,4.92923]
[1742410034229,3.19069131,2029.4,2028.5,5.7313]
[1742410034514,0.7933,2029.3,2028.7,0.55]
[1742410034675,0.7933,2029.3,2028.6,8.97883839]
[1742410035112,0.7933,2029.3,2028.7,0.55]
[1742410035433,3.19069131,2029.2,2028.2,0.7852]
[1742410035615,1.15429913,2029.1,2028.3,0.57258]
[1742410035814,1.15429913,2029.1,2028.4,0.0492912]
[1742410035981,0.7559,2029.1,2028.5,0.55]
[1742410036183,0.7559,2029.1,2028.4,4.92984]
[1742410036488,0.7559,2029.1,2028.5,4.92967]
[1742410036801,0.8275,2029.7,2029.1,4.9281]
[1742410037001,0.8275,2029.7,2029.2,7.75387913]
[1742410037203,0.8275,2029.7,2029.2,6.392]
[1742410038219,0.8137,2029.6,2028.7,3.55]
[1742410038515,0.8137,2029.5,2028.7,3.0]
[1742410038680,0.8137,2029.5,2028.6,6.392]
[1742410039008,0.8137,2029.5,2028.7,5.47916]
[1742410039231,0.8137,2029.5,2028.6,12.57208212]
[1742410039432,0.81,2029.4,2028.3,4.93022]
[1742410039732,0.81,2029.2,2028.6,4.9293]
[1742410039934,0.7869,2029.7,2028.8,4.92892]
[1742410040134,0.7869,2029.7,2029.0,4.9285]
[1742410040442,0.7869,2029.7,2028.9,5.421602]
[1742410040623,0.7869,2029.7,2028.9,5.421502]
[1742410040825,0.7869,2029.7,2029.1,5.47806]
[1742410041004,0.7869,2029.7,2029.2,4.92798]
[1742410041205,0.7869,2029.7,2029.2,5.968584]
[1742410041534,0.7869,2029.7,2029.2,5.968484]
[1742410041704,0.7869,2029.7,2029.3,4.92777]
[1742410042321,0.7869,2029.7,2029.3,4.92768]
[1742410042634,0.7869,2030.2,2029.5,4.92722]
[1742410042836,0.7869,2030.2,2029.6,7.045461]
[1742410043036,0.7869,2030.1,2029.6,6.06]
[1742410043332,0.7869,2030.1,2029.4,6.06]
[1742410043535,0.7869,2030.0,2029.4,6.06]
[1742410044932,0.7869,2030.0,2029.4,10.98747]
[1742410045145,0.7869,2030.0,2029.4,12.579038]
[1742410045551,0.7869,2030.0,2029.4,7.651508]
[1742410045923,0.7869,2030.0,2029.4,12.578978]
[1742410046137,0.7869,2030.0,2029.5,4.92729]
[1742410046309,0.7869,2030.0,2029.6,6.06]
[1742410047030,0.7869,2030.0,2029.6,12.2449238]
[1742410047209,0.7869,2030.0,2029.7,10.98679]
[1742410047412,0.7869,2030.0,2029.7,6.06]
[1742410048353,0.8162,2030.5,2029.9,4.92635]
[1742410048637,0.8162,2030.5,2029.9,0.55]
[1742410048818,0.7623,2030.4,2029.8,6.06]
[1742410049540,0.7623,2030.4,2029.9,6.06]
[1742410049541,0.8007,2030.2,2029.9,6.06]
[1742410049748,4.92602,2030.1,2029.9,6.06]
[1742410049950,0.8007,2030.0,2029.9,6.06]
[1742410050452,3.7915,2030.6,2029.9,6.06]
[1742410050620,0.7915,2030.4,2029.9,6.06]
[1742410050803,0.7915,2030.4,2030.0,6.06]
[1742410051140,0.7915,2030.4,2029.8,0.55]
[1742410051328,0.7915,2030.4,2029.7,6.06]
[1742410051537,0.7966,2030.1,2029.7,6.06]
[1742410052107,0.7966,2030.1,2029.7,12.08545]
[1742410052328,3.7767,2030.6,2029.8,4.92658]
[1742410052735,3.7767,2030.6,2029.7,12.441]
[1742410052736,0.8063,2030.5,2029.7,12.441]
[1742410053814,0.795,2030.4,2029.7,12.441]
[1742410054009,4.92522,2030.4,2029.7,12.441]
[1742410054212,0.7761,2030.2,2029.7,6.06]
[1742410054547,0.7761,2029.9,2029.7,6.06]
[1742410054841,0.7761,2029.9,2029.2,10.98794]
[1742410055221,0.7761,2029.9,2029.3,4.92765]
[1742410055420,0.7761,2029.9,2029.4,0.04927063]
[1742410055756,0.7761,2029.9,2029.5,5.47714]
[1742410055933,0.7761,2029.9,2029.6,4.92699]
[1742410056104,0.7728,2030.2,2029.6,4.92699]
[1742410056310,0.7728,2030.2,2029.5,5.47731]
[1742410056509,0.7728,2030.2,2029.5,0.55]
[1742410056710,0.7967,2030.1,2029.2,6.06]
[1742410056941,0.7967,2030.1,2029.4,4.92753]
[1742410057252,0.7967,2030.1,2029.3,6.378]
[1742410057746,0.7967,2030.1,2029.3,11.30578]
[1742410057932,0.7967,2030.0,2029.3,6.378]
[1742410058142,0.572264,2029.9,2029.3,6.378]
[1742410058526,5.72341,2029.8,2029.4,6.06]
[1742410058725,0.7967,2029.7,2029.4,6.06]
[1742410059754,8.91303081,2029.7,2029.4,6.06]
[1742410060248,0.7712,2029.6,2029.4,6.06]
[1742410060453,5.69829,2029.6,2029.4,6.06]
[1742410060615,0.7712,2029.4,2029.2,6.06]
[1742410060811,0.7712,2029.4,2028.8,6.06]
[1742410061767,0.7712,2029.4,2028.9,5.47868]
[1742410062049,0.7712,2029.4,2028.9,0.55]
[1742410062255,0.7712,2029.4,2028.9,5.47863]
[1742410062419,0.7712,2029.4,2029.0,1.153863]
[1742410062928,0.7712,2029.4,2028.8,6.06]
[1742410063130,0.7712,2029.4,2028.9,0.55]
[1742410063458,0.7559,2029.8,2029.2,4.92793]
[1742410063658,0.7559,2029.8,2029.3,6.06]
[1742410063860,0.7559,2029.8,2029.3,10.9877]
[1742410064056,0.7559,2029.8,2029.4,2.228874]
[1742410064418,0.7559,2029.8,2029.5,6.06]
[1742410065140,0.8012,2030.7,2030.0,4.9261]
[1742410065342,0.8012,2030.7,2030.1,6.06]
[1742410066357,0.8012,2030.7,2030.2,6.06]
[1742410067228,0.8012,2030.7,2030.2,7.19591894]
[1742410067441,0.8012,2030.7,2030.3,4.92522]
[1742410067669,0.8012,2030.7,2030.2,7.19591894]
[1742410067962,0.8012,2030.7,2030.2,6.06]
[1742410068186,8.11408081,2030.6,2030.2,6.06]
[1742410068388,1.66242808,2030.5,2030.2,6.06]
[1742410068587,0.7709,2030.5,2030.2,6.06]
[1742410069793,0.7709,2030.5,2029.9,6.06]
[1742410073117,3.18940081,2030.4,2029.9,6.06]
[1742410073315,8.87424081,2030.4,2030.0,6.06]
[1742410073476,0.7597,2030.3,2030.0,6.06]
[1742410073676,0.8197,2030.1,2030.0,6.06]
[1742410073998,0.8197,2030.1,2029.6,6.06]
[1742410074196,5.75298,2029.9,2029.6,6.06]
[1742410074498,0.8266,2029.9,2029.6,6.06]
[1742410075700,3.0,2030.4,2029.6,6.06]
[1742410075701,0.8202,2030.3,2029.6,10.98704]
[1742410075904,0.8202,2030.3,2029.7,1.177744]
[1742410076599,0.8202,2030.3,2029.6,6.06]
[1742410077005,0.8079,2030.2,2029.6,6.06]
[1742410077495,0.8079,2030.2,2029.8,4.92648]